[Event "44th Chess Olympiad Open 2022"]
[Site "Chennai"]
[Date "2022.08.05"]
[Round "7.42"]
[White "Msellek, Ilyass"]
[Black "Michaelides, Konstantinos"]
[Result "1-0"]
[ECO "C76"]
[WhiteElo "2398"]
[BlackElo "2300"]
[Annotator "ChessBase"]
[PlyCount "61"]
[EventDate "2022.07.29"]
[EventType "team-tourn"]
[EventCountry "IND"]
[SourceTitle "playchess.com"]
[Source "ChessBase"]
[SourceQuality "1"]
[WhiteTeam "Morocco"]
[BlackTeam "Cyprus"]
[WhiteTeamCountry "MAR"]
[BlackTeamCountry "CYP"]
[TimeControl "40/5400+30:1800+30"]

1. e4 {[%emt 0:00:05]} e5 {[%emt 0:00:12]} 2. Nf3 {[%emt 0:00:07]} Nc6 {[%emt 0:00:08]} 3. Bb5 {[%emt 0:00:35]} a6 {[%emt 0:00:20]} 4. Ba4 {[%emt 0:00:08]} d6 {[%emt 0:00:22]} 5. O-O {[%emt 0:00:28]} Nf6 {[%emt 0:01:46]} 6. Re1 {[%emt 0:02:13]} Bd7 {[%emt 0:01:48]} 7. c3 {[%emt 0:00:27]} g6 {[%emt 0:00:17]} 8. d4 {[%emt 0:00:27]} b5 {[%emt 0:00:48]} 9. Bc2 {[%emt 0:01:50]} Bg7 {[%emt 0:00:41]} 10. h3 {[%emt 0:05:50]} O-O {[%emt 0:00:15]} 11. Be3 {[%emt 0:00:25]} Re8 {[%emt 0:01:04]} 12. Nbd2 {[%emt 0:02:14]} Qc8 {[%emt 0:04:16]} 13. a3 {[%emt 0:02:34]} Nd8 {[%emt 0:10:45]} 14. b4 {[%emt 0:03:04]} Nb7 {[%emt 0:08:16]} 15. Rc1 {[%emt 0:25:52]} a5 {[%emt 0:07:47]} 16. Bb3 {[%emt 0:00:17]} axb4 {[%emt 0:03:10]} 17. axb4 {[%emt 0:00:11]} Nd8 {[%emt 0:03:15]} 18. d5 {[%emt 0:08:41]} Qb7 {[%emt 0:05:11]} 19. Ra1 {[%emt 0:02:18]} c6 {[%emt 0:11:57]} 20. Rxa8 {[%emt 0:06:59]} Qxa8 {[%emt 0:00:02]} 21. Qa1 {[%emt 0:00:11]} Qb7 {[%emt 0:08:43]} 22. Qa2 {[%emt 0:01:54]} cxd5 {[%emt 0:05:26]} 23. exd5 {[%emt 0:00:04]} Nh5 {[%emt 0:03:30]} 24. c4 {[%emt 0:15:50]} bxc4 {[%emt 0:07:41]} 25. Nxc4 {[%emt 0:00:06]} Qb8 {[%emt 0:03:20]} 26. Nb6 {[%emt 0:00:46]} Bc8 {[%emt 0:04:17]} 27. Rc1 {[%emt 0:00:43]} Nb7 {[%emt 0:05:35]} 28. Qa4 {[%emt 0:04:31]} Nf6 {[%emt 0:01:00]} 29. Qxe8+ {[%emt 0:00:48]} Nxe8 {[%emt 0:00:06]} 30. Rxc8 {[%emt 0:00:05]} Qxc8 {[%emt 0:01:35]} 31. Nxc8 {[%emt 0:00:05]} 1-0

[Event "44th Chess Olympiad Open 2022"]
[Site "Chennai"]
[Date "2022.08.05"]
[Round "7.42"]
[White "Isaakidis, Alexandros"]
[Black "Tissir, Mohamed"]
[Result "0-1"]
[ECO "E71"]
[WhiteElo "2165"]
[BlackElo "2366"]
[Annotator "TA"]
[PlyCount "100"]
[EventDate "2022.07.29"]
[EventType "team-tourn"]
[EventCountry "IND"]
[SourceTitle "playchess.com"]
[Source "ChessBase"]
[SourceQuality "1"]
[WhiteTeam "Cyprus"]
[BlackTeam "Morocco"]
[WhiteTeamCountry "CYP"]
[BlackTeamCountry "MAR"]
[TimeControl "40/5400+30:1800+30"]

{[%evp 14,100,37,29,56,51,66,52,49,50,96,83,95,86,106,100,100,106,102,54,143,120,116,118,130,126,129,121,133,125,152,133,146,95,120,0,59,116,114,99,321,156,161,17,154,158,323,0,0,0,0,0,0,-31,70,28,0,-43,-43,-43,83,-196,-186,-256,-259,-277,-205,-210,-205,-329,-314,-501,-184,-172,-168,-188,-147,-176,-142,-255,-232,-324,-324,-316,-310,-281,-110,-1004,-980]} 1. d4 {[%emt 0:00:04]} Nf6 {[%emt 0:00:24]} 2. c4 {[%emt 0:00:11]} g6 {[%emt 0:00:31]} 3. Nc3 {[%emt 0:00:08]} Bg7 {[%emt 0:00:03]} 4. e4 {[%emt 0:00:06]} d6 {[%emt 0:00:17]} 5. Bg5 {[%emt 0:00:15]} Nbd7 {[%emt 0:01:15]} 6. h3 {[%emt 0:01:58]} O-O {[%emt 0:18:10]} 7. Bd3 {[%emt 0:06:48]} e5 {[%emt 0:15:46]} 8. d5 {[%emt 0:00:52]} h6 {[%emt 0:03:39] E71: King's Indian: 4 e4 d6 5 h3.} 9. Be3 {[%emt 0:02:19]} Nh5 {[%emt 0:05:41]} 10. g3 {[%emt 0:09:38]} Nc5 {[%emt 0:01:31] White is slightly better.} 11. Bc2 {[%emt 0:04:40]} a5 {[%emt 0:08:38]} (11... c6 $14) 12. Qd2 $16 {[%emt 0:06:12]} Kh7 {[%emt 0:00:26]} 13. Nge2 {[%emt 0:13:46] [#]} Qe7 $146 {[%emt 0:08:24]} ({Predecessor:} 13... Bd7 14. g4 Nf6 15. Ng3 Rb8 16. a3 a4 17. Bxc5 dxc5 18. Bxa4 {½-½ (52) Chen,J (2247)-Singireddy,S (1683) ICC INT 2020}) 14. O-O-O {[%emt 0:08:56]} Nf6 {[%emt 0:01:39]} 15. g4 {[%emt 0:01:20]} Nfd7 {[%emt 0:02:43]} 16. Ng3 {[%emt 0:04:05]} (16. b3 $16) 16... a4 {[%emt 0:05:15]} (16... Nb6 $1 $14) 17. Qe2 {[%emt 0:03:33]} a3 {[%emt 0:12:46]} 18. b3 {[%emt 0:00:30]} (18. b4 $6 Na6 $11) 18... Qh4 {[%emt 0:02:31]} 19. Nb5 $1 {[%emt 0:03:11]} Na6 {[%emt 0:00:50]} 20. Qd2 {[%emt 0:06:12]} Re8 {[%emt 0:06:16]} 21. Rdg1 {[%emt 0:01:09]} Nf8 {[%emt 0:02:00]} 22. Bb1 {[%emt 0:05:23]} Bd7 {[%emt 0:00:55] [#]} 23. Nc3 {[%emt 0:01:07]} (23. Nxa3 Nc5 $16) (23. Nf5 $142 $1 {[%mdl 512]} gxf5 24. gxf5) 23... Reb8 {[%emt 0:00:42]} 24. Nb5 {[%emt 0:03:23]} ({White should play} 24. g5 $16) 24... Bxb5 {[%emt 0:00:44]} (24... Re8 $1 $11) 25. cxb5 $14 {[%emt 0:00:03]} Nc5 {[%emt 0:00:00][%cal Oc7c6]} 26. g5 $1 {[%emt 0:02:44]} Nfd7 $2 {[%emt 0:00:54]} (26... hxg5 $16 27. Bxg5 Qxg5 $1 28. Qxg5 Bh6) 27. f3 {[%emt 0:01:40]} (27. Ne2 $1 $18) 27... hxg5 $16 {[%emt 0:01:27]} 28. Bc2 {[%emt 0:04:14]} (28. Bxg5 $6 Qxg5 $1 29. Qxg5 Bh6 $11) (28. Ne2 $1 $18 {Strongly threatening Rg4.} Kg8 29. Bxg5) 28... Nf6 {[%emt 0:00:26] Inhibits Rg4.} (28... Bf6 $1 $11) 29. Nf1 {[%emt 0:04:51]} (29. Bxg5 Qxg5 30. Qxg5 Bh6 $16) 29... Bh6 $2 {[%emt 0:00:31]} (29... Kh8 $16) 30. Rg4 $2 {[%emt 0:01:34]} Nxg4 $15 {[%emt 0:00:28]} 31. fxg4 {[%emt 0:00:02] And now Bf2 would win.} Bf8 {[%emt 0:00:25]} 32. Bf2 $1 {[%emt 0:00:11]} (32. Bxg5 $2 Qxg5 $3 {[%mdl 512]} 33. Qxg5 Bh6 $19) 32... Qh6 {[%emt 0:00:36]} 33. h4 $1 {[%emt 0:00:42]} Kg8 {[%emt 0:00:10]} (33... Be7 $15 34. h5 Kg8 35. Bxc5 dxc5) 34. Be3 $1 $14 {[%emt 0:00:13][%mdl 1024] White has compensation.} Be7 {[%emt 0:00:28]} 35. Rh2 {[%emt 0:00:08]} Qg7 {[%emt 0:00:54]} 36. h5 {[%emt 0:01:07]} c6 {[%emt 0:00:09]} (36... Nd7 $15 {keeps the upper hand.}) 37. h6 $2 {[%emt 0:00:25][%mdl 8192] [#]} (37. b4 $16) 37... Qf8 $1 $19 {[%emt 0:00:11]} (37... Qf6 38. Rf2 Qh8 39. b4 $11) 38. Bxc5 {[%emt 0:05:13]} (38. bxc6 {was necessary.} bxc6 39. dxc6) 38... dxc5 {[%emt 0:00:06]} 39. bxc6 {[%emt 0:00:32]} bxc6 {[%emt 0:00:06]} 40. Ne3 {[%emt 0:00:33]} cxd5 {[%emt 0:01:41]} 41. Nxd5 {[%emt 0:30:17]} (41. Qxd5 $142 Kh7 42. Rf2) 41... c4 {[%emt 0:14:30]} (41... Kh7 $2 42. Bd3 $19) 42. Qc3 {[%emt 0:00:00]} (42. Qe3 $142) 42... f6 $2 {[%emt 0:03:02]} (42... cxb3 43. Bxb3 Rc8) 43. Qxc4 {[%emt 0:00:00]} Kh8 {[%emt 0:00:01]} ({Not} 43... Kh7 44. Qc7 Re8 45. Kb1 $17) 44. Qc7 {[%emt 0:00:00]} Bd8 {[%emt 0:05:12][%cal Be7d8,Bd8b6,Bb6d4][%mdl 32]} 45. Qd7 {[%emt 0:00:00]} Ra6 {[%emt 0:06:03]} 46. Kb1 {[%emt 0:00:00]} (46. b4 $17 {was called for.}) 46... Rd6 {[%emt 0:01:03]} 47. Qa7 {[%emt 0:00:00]} Bb6 {[%emt 0:00:01]} 48. Qxa3 {[%emt 0:00:10]} Bd4 {[%emt 0:00:54]} (48... Kh7 49. Bd3 $17) 49. Bd3 {[%emt 0:01:44]} Rc8 {[%emt 0:01:11] Prevents Qc1.} ({Stronger than} 49... Kh7 50. Rc2 $17) (49... f5 $19 {has better winning chances.} 50. gxf5 gxf5) 50. Bc4 $2 {[%emt 0:01:04][%mdl 8192] [#]} (50. Qb4 $17) 50... Rxc4 $1 {[%emt 0:00:28][%mdl 512] Quite a comeback for Black.  Weighted Error Value: White=0.57/Black=0.42} 0-1

[Event "44th Chess Olympiad Open 2022"]
[Site "Chennai"]
[Date "2022.08.05"]
[Round "7.42"]
[White "Hadj Kholti, Yasser"]
[Black "Damianou, Ioannis"]
[Result "0-1"]
[ECO "B40"]
[WhiteElo "1871"]
[BlackElo "2153"]
[Annotator "TA"]
[PlyCount "75"]
[EventDate "2022.07.29"]
[EventType "team-tourn"]
[EventCountry "IND"]
[SourceTitle "playchess.com"]
[Source "ChessBase"]
[SourceQuality "1"]
[WhiteTeam "Morocco"]
[BlackTeam "Cyprus"]
[WhiteTeamCountry "MAR"]
[BlackTeamCountry "CYP"]
[TimeControl "40/5400+30:1800+30"]

{[%evp 13,75,40,37,29,30,27,31,28,29,21,40,24,36,3,31,4,10,13,9,20,27,-8,0,-46,-46,-45,-53,-54,-47,-253,-109,-230,-162,-166,-154,-256,-229,-238,-170,-226,-114,-100,-87,-456,-456,-456,-448,-452,-423,-456,-449,-440,-432,-903,-883,-900,-880,-795,-797,-12845,-12845,-12847,-12847,-29998]} 1. e4 {[%emt 0:00:03]} c5 {[%emt 0:00:08]} 2. Nf3 {[%emt 0:00:08]} Nc6 {[%emt 0:00:06]} 3. d4 {[%emt 0:00:25]} cxd4 {[%emt 0:00:06]} 4. Nxd4 {[%emt 0:00:05]} e6 {[%emt 0:00:03]} 5. c4 {[%emt 0:00:22]} Nxd4 {[%emt 0:02:37]} 6. Qxd4 {[%emt 0:00:06]} Ne7 {[%emt 0:00:05]} 7. Nc3 {[%emt 0:06:28]} Nc6 {[%emt 0:00:08]} 8. Qd3 {[%emt 0:03:47] B40: Sicilian: 2...e6, Unusual lines.} Bc5 {[%emt 0:03:51]} 9. Be2 {[%emt 0:02:41]} d6 {[%emt 0:01:48]} 10. O-O {[%emt 0:01:08] White is slightly better.} O-O {[%emt 0:00:24]} 11. a3 {[%emt 0:09:38]} a6 {[%emt 0:03:29]} 12. b4 {[%emt 0:01:38]} Ba7 {[%emt 0:04:41] [#]} 13. Be3 $146 {[%emt 0:15:30]} (13. Qg3 {is interesting.} Bd4 14. Bd2 e5 15. Rac1) ({Predecessor:} 13. Qg3 e5 14. Bg5 f6 15. Bh6 Qd7 16. Be3 Nd4 17. Rad1 f5 18. f4 fxe4 19. fxe5 Rxf1+ 20. Rxf1 {1-0 (38) Vitoux,C (2385)-Lazarev,V (2378) Drancy 2016}) 13... e5 {[%emt 0:16:01]} 14. Rad1 {[%emt 0:10:12]} Nd4 {[%emt 0:00:00]} 15. f4 {[%emt 0:01:47]} Be6 {[%emt 0:09:46][%cal Ob7b5]} 16. fxe5 {[%emt 0:09:04]} dxe5 {[%emt 0:10:55][%cal Oe6c4]} 17. c5 {[%emt 0:04:42][%cal Re3d4]} b6 {[%emt 0:04:20]} 18. Bxd4 {[%emt 0:02:10]} ({Avoid the trap} 18. Qxa6 $2 bxc5 19. Bxd4 exd4 $19) (18. Na4 $11) 18... Qxd4+ $15 {[%emt 0:05:10]} 19. Qxd4 {[%emt 0:19:23]} exd4 {[%emt 0:00:08]} 20. Nd5 {[%emt 0:01:07]} bxc5 {[%emt 0:06:09][%cal Od4d3] [#] Threatens to win with ...d3!} 21. Ne7+ {[%emt 0:05:00]} (21. Kh1 $15) 21... Kh8 $17 {[%emt 0:00:06][%cal Od4d3]} 22. Bxa6 {[%emt 0:00:15]} (22. Nc6 $17) 22... Bb6 {[%emt 0:10:37]} 23. Bb5 {[%emt 0:03:16]} Rxa3 {[%emt 0:04:15]} 24. bxc5 {[%emt 0:00:55]} (24. Nd5 $17 Bxd5 25. exd5) 24... Bxc5 $19 {[%emt 0:00:06]} 25. Nd5 {[%emt 0:00:27]} f5 {[%emt 0:03:20]} 26. Nf4 {[%emt 0:01:38]} (26. Rc1 {was called for.} Rc8 27. Nf4 d3+ 28. Kh1) 26... Bb3 {[%emt 0:02:15]} ({Better is} 26... d3+ $1 $19 27. Kh1 Bb3 28. Rxd3 g5) 27. Rc1 $17 {[%emt 0:00:15]} Ba7 $36 {[%emt 0:01:26][%mdl 2048] White is under strong pressure. A strong pair of Bishops.} 28. exf5 $2 {[%emt 0:00:30][%mdl 8192]} (28. Bd3 $17 {is a better chance.}) 28... d3+ $1 $19 {[%emt 0:01:04][%cal Bd4d3,Bd3d2][%mdl 32] Black is clearly winning.} 29. Kh1 {[%emt 0:00:03]} d2 {[%emt 0:00:05]} 30. Rc3 {[%emt 0:00:03]} g5 {[%emt 0:02:38]} 31. Ne6 {[%emt 0:00:35] [#]} Bxe6 {[%emt 0:02:14]} 32. Rxa3 {[%emt 0:00:04] Hoping for Rd3.} Rxf5 {[%emt 0:00:16]} 33. Raa1 {[%emt 0:01:10]} (33. Rd1 $142 Rxb5 34. Rxa7) 33... Rxb5 {[%emt 0:01:15]} 34. Rxa7 {[%emt 0:00:20]} Rd5 {[%emt 0:00:39]} 35. Raa1 {[%emt 0:01:17]} Bg4 {[%emt 0:00:48]} 36. Rad1 {[%emt 0:01:25]} Bxd1 {[%emt 0:00:08]} 37. Rxd1 {[%emt 0:00:02]} Re5 {[%emt 0:00:16] ( -> ...Re1+)} 38. Ra1 {[%emt 0:00:04] Weighted Error Value: White=0.90/Black=0.14 (very precise)} 0-1

[Event "44th Chess Olympiad Open 2022"]
[Site "Chennai"]
[Date "2022.08.05"]
[Round "7.42"]
[White "Antoniou, Rafail"]
[Black "Zrikem, Nassim"]
[Result "0-1"]
[ECO "C55"]
[WhiteElo "1817"]
[BlackElo "2075"]
[Annotator "TA"]
[PlyCount "68"]
[EventDate "2022.07.29"]
[EventType "team-tourn"]
[EventCountry "IND"]
[SourceTitle "playchess.com"]
[Source "ChessBase"]
[SourceQuality "1"]
[WhiteTeam "Cyprus"]
[BlackTeam "Morocco"]
[WhiteTeamCountry "CYP"]
[BlackTeamCountry "MAR"]
[TimeControl "40/5400+30:1800+30"]

{[%evp 10,68,10,0,-1,-20,10,0,0,0,0,-11,-7,-27,-27,-24,-29,-32,-17,-91,-69,-72,-38,-71,-54,-62,-27,-90,-110,-111,-96,-102,-91,-108,-105,-104,-102,-103,-114,-133,-87,-145,-98,-177,-54,-593,-591,-592,-558,-580,-577,-5118,-5110,-5110,-5110,-2159,-2325,-1445,-1400,-29991,-29972]} 1. e4 {[%emt 0:00:20]} e5 {[%emt 0:00:14]} 2. Nf3 {[%emt 0:00:16]} Nc6 {[%emt 0:00:14]} 3. Bc4 {[%emt 0:00:17]} Nf6 {[%emt 0:00:36]} 4. d3 {[%emt 0:00:38]} Be7 {[%emt 0:00:20]} 5. Nc3 {[%emt 0:00:57]} d6 {[%emt 0:00:30]} 6. O-O {[%emt 0:00:19]} Na5 {[%emt 0:00:38] C55: Two Knights: 4 d3, 4 d4 exd4 5 e5 and Max Lange Attack.} 7. h3 {[%emt 0:09:39]} c6 {[%emt 0:04:01]} 8. a4 {[%emt 0:05:49]} Nxc4 {[%emt 0:05:42] The position is equal.} 9. dxc4 {[%emt 0:00:03] [#]} Qc7 $146 {[%emt 0:01:11]} ({Predecessor:} 9... O-O 10. b3 h6 11. Be3 Be6 12. Re1 Qc7 13. a5 Rfd8 14. Qe2 d5 15. cxd5 cxd5 {0-1 (55) Tologontegin,S (2380)-Rakotomaharo,F (2429) Chess.com INT 2021}) 10. Qe2 {[%emt 0:01:50]} h6 {[%emt 0:01:17]} 11. Be3 {[%emt 0:13:12]} g5 {[%emt 0:03:55]} 12. Nd2 {[%emt 0:08:29]} Rg8 {[%emt 0:03:59]} 13. g4 {[%emt 0:11:05]} Nd7 {[%emt 0:03:53][%cal Bf6d7,Bd7f8,Bf8e6,Be6f4][%mdl 32]} 14. Nb3 {[%emt 0:04:27]} (14. f3 $11) 14... a5 {[%emt 0:07:29]} 15. Rad1 {[%emt 0:08:41]} b6 {[%emt 0:00:17]} 16. Rd2 {[%emt 0:01:03]} Nf8 {[%emt 0:00:25]} 17. f3 {[%emt 0:02:49]} Ne6 {[%emt 0:01:44]} 18. Nc1 {[%emt 0:01:23]} (18. Qf2 $1 $11 {keeps the balance.}) 18... Nf4 $17 {[%emt 0:01:11]} 19. Bxf4 {[%emt 0:00:34]} gxf4 {[%emt 0:00:09]} 20. Nd3 {[%emt 0:00:51]} Be6 {[%emt 0:00:08]} 21. b3 {[%emt 0:00:19]} h5 {[%emt 0:00:06]} 22. Rf2 {[%emt 0:07:18]} Rh8 {[%emt 0:02:36]} 23. Rh2 {[%emt 0:02:49]} Bh4 {[%emt 0:02:30]} 24. Nf2 {[%emt 0:05:38]} Ke7 {[%emt 0:01:34]} (24... O-O-O $142 25. Rd1 Bg3) 25. Kg2 {[%emt 0:01:03] [#]} (25. Rg2 $142) 25... Rag8 {[%emt 0:00:21] Black is more active.} ({Better is} 25... Bg3 $1 26. Rh1 Rag8) 26. Rd1 {[%emt 0:01:24]} (26. Kf1 $17) 26... Qd7 {[%emt 0:01:42]} (26... Rh7 $19 {Hoping for ...Rgh8.} 27. Kf1 Bg3) 27. Nd5+ $2 {[%emt 0:01:47][%mdl 8192] Loses the game.} cxd5 $19 {[%emt 0:02:23]} 28. cxd5 {[%emt 0:00:03] [#]} Bxg4 {[%emt 0:00:06][%mdl 512]} 29. hxg4 {[%emt 0:00:41]} Bxf2 {[%emt 0:00:15]} ({Worse is} 29... hxg4 30. Nxg4 f5 31. exf5 Qxf5 32. Rdh1 Rxg4+ 33. fxg4 f3+ 34. Qxf3 Qxc2+ 35. Kf1 Qb1+ 36. Kg2 Qb2+ 37. Kf1 Qc1+ 38. Kg2 Qc2+ 39. Kf1 Qc1+ 40. Kg2 Qc2+ $11) 30. Qxf2 {[%emt 0:00:20]} hxg4 {[%emt 0:00:10]} 31. Rxh8 {[%emt 0:00:32]} gxf3+ {[%emt 0:01:40]} 32. Kf1 {[%emt 0:00:39]} Rxh8 {[%emt 0:00:06][%cal Bg8h8,Bh8h3,Bh3h1][%mdl 32]} 33. Qxf3 {[%emt 0:00:08]} Rh3 {[%emt 0:00:09]} 34. Qe2 {[%emt 0:03:03]} Rh1+ {[%emt 0:00:16] Weighted Error Value: White=0.85/Black=0.14 (very precise)} 0-1

[Event "44th Chess Olympiad Open 2022"]
[Site "Chennai"]
[Date "2022.08.05"]
[Round "7.43"]
[White "Othman, A. Moussa"]
[Black "Arias Santana, Mauricio"]
[Result "0-1"]
[ECO "D30"]
[WhiteElo "2229"]
[BlackElo "2318"]
[Annotator "ChessBase"]
[PlyCount "74"]
[EventDate "2022.07.29"]
[EventType "team-tourn"]
[EventCountry "IND"]
[SourceTitle "playchess.com"]
[Source "ChessBase"]
[SourceQuality "1"]
[WhiteTeam "United Arab Emirates"]
[BlackTeam "Costa Rica"]
[WhiteTeamCountry "UAE"]
[BlackTeamCountry "CRI"]
[TimeControl "40/5400+30:1800+30"]

1. d4 {[%emt 0:00:12]} Nf6 {[%emt 0:00:02]} 2. c4 {[%emt 0:00:07]} e6 {[%emt 0:00:04]} 3. Nf3 {[%emt 0:00:04]} d5 {[%emt 0:00:05]} 4. Nbd2 {[%emt 0:01:56]} c5 {[%emt 0:00:08]} 5. cxd5 {[%emt 0:00:05]} exd5 {[%emt 0:00:02]} 6. g3 {[%emt 0:00:12]} Nc6 {[%emt 0:01:31]} 7. Bg2 {[%emt 0:00:05]} Be7 {[%emt 0:02:27]} 8. dxc5 {[%emt 0:01:12]} Bxc5 {[%emt 0:00:02]} 9. O-O {[%emt 0:00:19]} O-O {[%emt 0:00:12]} 10. Nb3 {[%emt 0:01:20]} Bb6 {[%emt 0:00:02]} 11. Nbd4 {[%emt 0:02:31]} Bg4 {[%emt 0:01:34]} 12. Nxc6 {[%emt 0:06:00]} bxc6 {[%emt 0:00:03]} 13. Ne5 {[%emt 0:00:22]} Re8 {[%emt 0:04:15]} 14. Nxg4 {[%emt 0:06:44]} Nxg4 {[%emt 0:00:02]} 15. e3 {[%emt 0:09:42]} h5 {[%emt 0:04:07]} 16. Bd2 {[%emt 0:07:59]} Qg5 {[%emt 0:04:33]} 17. h3 {[%emt 0:22:43]} Nf6 {[%emt 0:01:39]} 18. h4 {[%emt 0:02:42]} Qg6 {[%emt 0:01:27]} 19. Rc1 {[%emt 0:22:08]} Ne4 {[%emt 0:04:40]} 20. Qc2 {[%emt 0:08:17]} c5 {[%emt 0:01:52]} 21. Rfd1 {[%emt 0:01:20]} Rad8 {[%emt 0:01:59]} 22. Be1 {[%emt 0:00:13]} Qe6 {[%emt 0:04:54]} 23. b3 {[%emt 0:03:49]} f5 {[%emt 0:12:50]} 24. f3 {[%emt 0:01:39]} Nf6 {[%emt 0:00:25]} 25. Bf2 {[%emt 0:00:06]} Rc8 {[%emt 0:02:30]} 26. Bh3 {[%emt 0:00:19]} g6 {[%emt 0:00:15]} 27. Bf1 {[%emt 0:00:45]} Kh7 {[%emt 0:00:11]} 28. Re1 {[%emt 0:01:01]} Nd7 {[%emt 0:05:20]} 29. Bd3 {[%emt 0:00:35]} Ne5 {[%emt 0:01:10]} 30. Kg2 {[%emt 0:00:32]} Re7 {[%emt 0:07:28]} 31. Ba6 {[%emt 0:00:14]} Rd8 {[%emt 0:02:26]} 32. Be2 {[%emt 0:00:21]} Qd7 {[%emt 0:00:44]} 33. Red1 {[%emt 0:00:33]} Qb7 {[%emt 0:00:02]} 34. Qb2 {[%emt 0:00:49]} Rde8 {[%emt 0:08:49]} 35. Rc2 {[%emt 0:00:07]} d4 {[%emt 0:06:13]} 36. exd4 {[%emt 0:00:31]} cxd4 {[%emt 0:00:03]} 37. Bxd4 {[%emt 0:00:52]} Ng4 {[%emt 0:01:15]} 0-1

[Event "44th Chess Olympiad Open 2022"]
[Site "Chennai"]
[Date "2022.08.05"]
[Round "7.43"]
[White "Chinchilla Miranda, Eugenio"]
[Black "Abdulrahman Mohammad, Al Taher"]
[Result "0-1"]
[ECO "D35"]
[WhiteElo "2206"]
[BlackElo "2029"]
[Annotator "NA RC"]
[PlyCount "104"]
[EventDate "2022.07.29"]
[EventType "team-tourn"]
[EventCountry "IND"]
[SourceTitle "playchess.com"]
[Source "ChessBase"]
[SourceQuality "1"]
[WhiteTeam "Costa Rica"]
[BlackTeam "United Arab Emirates"]
[WhiteTeamCountry "CRI"]
[BlackTeamCountry "UAE"]
[TimeControl "40/5400+30:1800+30"]

1. d4 {[%emt 0:00:20]} d5 {[%emt 0:00:12]} 2. c4 {[%emt 0:00:13]} e6 {[%emt 0:00:28]} 3. Nc3 {[%emt 0:00:06]} Nf6 {[%emt 0:00:19]} 4. Nf3 {[%emt 0:00:15]} Be7 {[%emt 0:01:09]} 5. Bf4 {[%emt 0:00:23]} O-O {[%emt 0:00:59]} 6. Rc1 {[%emt 0:00:17]} Nbd7 {[%emt 0:07:38]} 7. cxd5 {[%emt 0:01:56]} exd5 {[%emt 0:00:09]} 8. e3 {[%emt 0:00:17]} c6 {[%emt 0:01:45]} 9. h3 {[%emt 0:01:11]} Re8 {[%emt 0:01:58]} 10. Bd3 {[%emt 0:00:35]} Nf8 {[%emt 0:01:28]} 11. O-O {[%emt 0:00:11]} Ng6 {[%emt 0:01:31]} 12. Bh2 {[%emt 0:00:11]} Bd6 {[%emt 0:01:35]} 13. Bxd6 {[%emt 0:01:50]} Qxd6 {[%emt 0:00:04]} 14. Qc2 {[%emt 0:00:50]} Qe7 {[%emt 0:10:17]} 15. Rfd1 {[%emt 0:01:06]} Ne4 {[%emt 0:08:38]} 16. Bxe4 {[%emt 0:00:40]} dxe4 {[%emt 0:00:05]} 17. Ne5 {[%emt 0:09:50]} Nxe5 {[%emt 0:08:43]} 18. dxe5 {[%emt 0:00:04]} Qxe5 {[%emt 0:01:46]} 19. Qxe4 {[%emt 0:00:32]} Qxe4 {[%emt 0:06:28]} 20. Nxe4 {[%emt 0:00:08]} Be6 {[%emt 0:00:37]} 21. b3 {[%emt 0:04:07]} Bxb3 {[%emt 0:12:43]} 22. axb3 {[%emt 0:12:56]} Rxe4 {[%emt 0:00:16]} 23. Rd7 {[%emt 0:00:12]} Rb4 {[%emt 0:02:21]} 24. Rcd1 {[%emt 0:00:22]} g6 {[%emt 0:03:45]} 25. Rc7 {[%emt 0:15:57]} Rxb3 {[%emt 0:01:14]} 26. Rdd7 {[%emt 0:00:09]} Rf8 {[%emt 0:01:22]} 27. Rxb7 {[%emt 0:00:06]} Rxb7 {[%emt 0:00:18]} 28. Rxb7 {[%emt 0:00:03]} Ra8 {[%emt 0:00:16]} 29. Rc7 {[%emt 0:00:12]} a5 {[%emt 0:00:30]} 30. Rxc6 {[%emt 0:00:03]} a4 {[%emt 0:00:05]} 31. Rc2 {[%emt 0:00:15]} Kg7 {[%emt 0:01:09]} 32. Kf1 {[%emt 0:03:44]} Kf6 {[%emt 0:00:18]} 33. Ke2 {[%emt 0:00:44]} a3 {[%emt 0:00:25]} 34. Ra2 {[%emt 0:00:22]} Ke5 {[%emt 0:00:13]} 35. Kd3 {[%emt 0:03:47]} f5 {[%emt 0:01:57]} 36. h4 {[%emt 0:16:09]} h5 {[%emt 0:08:51]} 37. f3 {[%emt 0:10:18]} Kd5 {[%emt 0:00:56]} 38. Kc3 {[%emt 0:03:26]} Kc5 {[%emt 0:01:21]} 39. Kb3 {[%emt 0:14:18]} Kb5 {[%emt 0:01:04]} 40. Kc3 {[%emt 0:01:49]} Ka4 {[%emt 0:02:47]} 41. e4 {[%emt 0:01:51]} fxe4 {[%emt 0:03:48]} 42. fxe4 {[%emt 0:01:03]} Rc8+ {[%emt 0:00:14]} 43. Kd4 {[%emt 0:00:11]} Kb3 {[%emt 0:03:53]} 44. Ra1 {[%emt 0:04:38]} Kb2 {[%emt 0:01:43]} 45. Rf1 {[%emt 0:00:20]} a2 {[%emt 0:04:33]} 46. Ke5 {[%emt 0:02:27]} Rc1 {[%emt 0:01:12]} 47. Rf2+ {[%emt 0:00:19]} Rc2 {[%emt 0:00:05]} 48. Rf1 {[%emt 0:00:13]} Rxg2 {[%emt 0:00:38]} 49. Kf6 {[%emt 0:00:09]} a1=Q {[%emt 0:00:28]} 50. Rxa1 {[%emt 0:00:10]} Kxa1 {[%emt 0:00:03]} 51. e5 {[%emt 0:00:07]} Rg4 {[%emt 0:00:08]} 52. e6 {[%emt 0:00:15]} Rxh4 {[%emt 0:00:07]} 0-1